[Event "Titled Tuesday Blitz March 28 Early 2023"]
[White "Fedoseev, Vladimir"]
[Black "Pichot, Alan"]
[WhiteFideId "24130737"]
[BlackFideId "110973"]
[WhiteElo "2752"]
[BlackElo "2573"]
[Result "1-0"]
[Round "04"]
[TimeControl "180+2"]
[Date "2023.03.28"]
[WhiteClock "0:00:12"]
[BlackClock "0:00:02"]

1. e4 {[%clk 0:02:52]}  e5 {[%clk 0:02:57]} 2. Nf3 {[%clk 0:02:52]}  Nc6 {[%clk 0:02:57]} 3. Bb5 {[%clk 0:02:51]}  a6 {[%clk 0:02:57]} 4. Ba4 {[%clk 0:02:51]}  Nf6 {[%clk 0:02:57]} 5. O-O {[%clk 0:02:51]}  Bc5 {[%clk 0:02:57]} 6. Bxc6 {[%clk 0:02:45]}  dxc6 {[%clk 0:02:57]} 7. d3 {[%clk 0:02:45]}  Qe7 {[%clk 0:02:53]} 8. Bg5 {[%clk 0:02:38]}  h6 {[%clk 0:02:49]} 9. Be3 {[%clk 0:02:33]}  Bd6 {[%clk 0:02:37]} 10. Nbd2 {[%clk 0:02:30]}  Be6 {[%clk 0:02:36]} 11. d4 {[%clk 0:02:14]}  exd4 {[%clk 0:01:59]} 12. Bxd4 {[%clk 0:02:14]}  Bc5 {[%clk 0:02:00]} 13. c3 {[%clk 0:02:06]}  O-O-O {[%clk 0:01:57]} 14. Qc2 {[%clk 0:02:05]}  g5 {[%clk 0:01:49]} 15. b4 {[%clk 0:01:47]}  Bxd4 {[%clk 0:01:24]} 16. Nxd4 {[%clk 0:01:47]}  Ng4 {[%clk 0:01:05]} 17. N2f3 {[%clk 0:01:40]}  Bc4 {[%clk 0:01:04]} 18. Rfe1 {[%clk 0:01:36]}  Rhe8 {[%clk 0:01:03]} 19. Rad1 {[%clk 0:01:31]}  Qf6 {[%clk 0:01:02]} 20. a4 {[%clk 0:01:18]}  Ne5 {[%clk 0:01:01]} 21. Nxe5 {[%clk 0:01:13]}  Qxe5 {[%clk 0:01:01]} 22. f3 {[%clk 0:00:58]}  Rd7 {[%clk 0:00:52]} 23. Nf5 {[%clk 0:00:55]}  Red8 {[%clk 0:00:50]} 24. Rd4 {[%clk 0:00:52]}  Be6 {[%clk 0:00:49]} 25. Rxd7 {[%clk 0:00:45]}  Rxd7 {[%clk 0:00:49]} 26. Nd4 {[%clk 0:00:43]}  g4 {[%clk 0:00:41]} 27. Qc1 {[%clk 0:00:38]}  gxf3 {[%clk 0:00:40]} 28. Nxf3 {[%clk 0:00:38]}  Qf6 {[%clk 0:00:35]} 29. Qe3 {[%clk 0:00:38]}  Kb8 {[%clk 0:00:32]} 30. h3 {[%clk 0:00:36]}  Bc4 {[%clk 0:00:31]} 31. Nd4 {[%clk 0:00:35]}  Qg6 {[%clk 0:00:26]} 32. Kh2 {[%clk 0:00:34]}  Re7 {[%clk 0:00:26]} 33. Qf4 {[%clk 0:00:34]}  Re8 {[%clk 0:00:22]} 34. Re3 {[%clk 0:00:32]}  h5 {[%clk 0:00:10]} 35. e5 {[%clk 0:00:27]}  Bd5 {[%clk 0:00:06]} 36. Rg3 {[%clk 0:00:27]}  Qb1 {[%clk 0:00:04]} 37. Rg7 {[%clk 0:00:23]}  Qe1 {[%clk 0:00:04]} 38. e6 {[%clk 0:00:19]}  Bxe6 {[%clk 0:00:04]} 39. Nxe6 {[%clk 0:00:20]}  Qxe6 {[%clk 0:00:04]} 40. Rxf7 {[%clk 0:00:21]}  Re7 {[%clk 0:00:02]} 41. Rf8+ {[%clk 0:00:17]}  Ka7 {[%clk 0:00:01]} 42. Qd4+ {[%clk 0:00:16]}  b6 {[%clk 0:00:01]} 43. Qh8 {[%clk 0:00:14]}  Qd6+ {[%clk 0:00:02]} 44. Kg1 {[%clk 0:00:13]}  Re1+ {[%clk 0:00:02]} 45. Kf2 {[%clk 0:00:13]}  Qd2+ {[%clk 0:00:02]} 46. Kg3 {[%clk 0:00:14]}  Re3+ {[%clk 0:00:02]} 47. Kh4 {[%clk 0:00:14]}  Qe1+ {[%clk 0:00:03]} 48. Kxh5 {[%clk 0:00:13]}  Re5+ {[%clk 0:00:02]} 49. Kg4 {[%clk 0:00:12]}  Qe2+ {[%clk 0:00:02]} 50. Kg3 {[%clk 0:00:12]}  Re3+ {[%clk 0:00:02]} 51. Kh2 {[%clk 0:00:12]}  b5 {[%clk 0:00:02]} 52. Ra8+ {[%clk 0:00:12]} 1-0


[Site "https://www.chess.com"]

[Event "Titled Tuesday Blitz March 28 Early 2023"]
[White "Duda, Jan-Krzysztof"]
[Black "Flores, Diego"]
[WhiteFideId "1170546"]
[BlackFideId "108049"]
[WhiteElo "2790"]
[BlackElo "2606"]
[Result "1-0"]
[Round "04"]
[TimeControl "180+2"]
[Date "2023.03.28"]
[WhiteClock "0:00:22"]
[BlackClock "0:00:05"]

1. e4 {[%clk 0:03:00]}  c5 {[%clk 0:02:59]} 2. Nf3 {[%clk 0:03:01]}  e6 {[%clk 0:03:00]} 3. d4 {[%clk 0:03:01]}  cxd4 {[%clk 0:03:00]} 4. Nxd4 {[%clk 0:03:02]}  a6 {[%clk 0:03:01]} 5. c4 {[%clk 0:03:00]}  Nf6 {[%clk 0:03:00]} 6. Nc3 {[%clk 0:03:00]}  Qc7 {[%clk 0:03:00]} 7. a3 {[%clk 0:02:59]}  b6 {[%clk 0:03:00]} 8. Be3 {[%clk 0:02:58]}  Bb7 {[%clk 0:03:01]} 9. f3 {[%clk 0:02:58]}  Be7 {[%clk 0:03:01]} 10. Rc1 {[%clk 0:02:58]}  O-O {[%clk 0:02:57]} 11. g4 {[%clk 0:02:53]}  Nc6 {[%clk 0:02:54]} 12. Nd5 {[%clk 0:02:27]}  exd5 {[%clk 0:02:52]} 13. cxd5 {[%clk 0:02:28]}  Nxd5 {[%clk 0:02:44]} 14. exd5 {[%clk 0:02:29]}  Bh4+ {[%clk 0:02:44]} 15. Kd2 {[%clk 0:02:26]}  Rfe8 {[%clk 0:02:38]} 16. dxc6 {[%clk 0:02:18]}  dxc6 {[%clk 0:02:38]} 17. Bd3 {[%clk 0:02:17]}  Rxe3 {[%clk 0:01:55]} 18. Kxe3 {[%clk 0:02:13]}  Bg5+ {[%clk 0:01:09]} 19. Kf2 {[%clk 0:02:05]}  Bxc1 {[%clk 0:00:50]} 20. Qxc1 {[%clk 0:02:06]}  Rd8 {[%clk 0:00:49]} 21. Qe3 {[%clk 0:01:06]}  Qd6 {[%clk 0:00:48]} 22. Rd1 {[%clk 0:00:54]}  Qxh2+ {[%clk 0:00:47]} 23. Ke1 {[%clk 0:00:55]}  g6 {[%clk 0:00:21]} 24. Ne2 {[%clk 0:00:49]}  c5 {[%clk 0:00:18]} 25. Bc2 {[%clk 0:00:33]}  Qh4+ {[%clk 0:00:10]} 26. Qf2 {[%clk 0:00:33]}  Qh1+ {[%clk 0:00:10]} 27. Ng1 {[%clk 0:00:33]}  Re8+ {[%clk 0:00:10]} 28. Kd2 {[%clk 0:00:28]}  Qh6+ {[%clk 0:00:10]} 29. f4 {[%clk 0:00:28]}  Qg7 {[%clk 0:00:06]} 30. Kc1 {[%clk 0:00:28]}  c4 {[%clk 0:00:05]} 31. Nf3 {[%clk 0:00:27]}  c3 {[%clk 0:00:05]} 32. Ne5 {[%clk 0:00:24]}  cxb2+ {[%clk 0:00:05]} 33. Kb1 {[%clk 0:00:25]}  f6 {[%clk 0:00:05]} 34. Rd7 {[%clk 0:00:22]} 1-0


[Site "https://www.chess.com"]

[Event "Titled Tuesday Blitz March 28 Early 2023"]
[White "Wagner, Dennis"]
[Black "Gholami Orimi, Mahdi"]
[WhiteFideId "24650684"]
[BlackFideId "12558486"]
[WhiteElo "2470"]
[BlackElo "2363"]
[Result "0-1"]
[Round "04"]
[TimeControl "180+2"]
[Date "2023.03.28"]
[WhiteClock "0:00:01"]
[BlackClock "0:00:05"]

1. d4 {[%clk 0:03:00]}  Nf6 {[%clk 0:02:58]} 2. c4 {[%clk 0:03:00]}  c5 {[%clk 0:02:57]} 3. Nf3 {[%clk 0:02:58]}  cxd4 {[%clk 0:02:54]} 4. Nxd4 {[%clk 0:02:59]}  g6 {[%clk 0:02:54]} 5. Nc3 {[%clk 0:02:57]}  d5 {[%clk 0:02:52]} 6. cxd5 {[%clk 0:02:54]}  Nxd5 {[%clk 0:02:53]} 7. Ndb5 {[%clk 0:02:55]}  Nxc3 {[%clk 0:02:50]} 8. Qxd8+ {[%clk 0:02:55]}  Kxd8 {[%clk 0:02:51]} 9. Nxc3 {[%clk 0:02:55]}  Bg7 {[%clk 0:02:46]} 10. Bf4 {[%clk 0:02:55]}  Bf5 {[%clk 0:02:20]} 11. O-O-O+ {[%clk 0:02:49]}  Nd7 {[%clk 0:02:20]} 12. e4 {[%clk 0:02:50]}  Be6 {[%clk 0:02:13]} 13. Bb5 {[%clk 0:02:32]}  Bxc3 {[%clk 0:02:08]} 14. bxc3 {[%clk 0:02:09]}  a6 {[%clk 0:01:54]} 15. Bxd7 {[%clk 0:01:57]}  Bxd7 {[%clk 0:01:54]} 16. Rd4 {[%clk 0:01:57]}  Ke8 {[%clk 0:01:53]} 17. Rhd1 {[%clk 0:01:56]}  Bc6 {[%clk 0:01:53]} 18. Bc7 {[%clk 0:01:51]}  f6 {[%clk 0:01:52]} 19. f3 {[%clk 0:01:35]}  Kf7 {[%clk 0:01:51]} 20. Bb6 {[%clk 0:01:32]}  Rac8 {[%clk 0:01:50]} 21. a4 {[%clk 0:01:31]}  h5 {[%clk 0:01:45]} 22. h4 {[%clk 0:01:28]}  g5 {[%clk 0:01:39]} 23. hxg5 {[%clk 0:01:26]}  fxg5 {[%clk 0:01:40]} 24. a5 {[%clk 0:01:26]}  h4 {[%clk 0:01:40]} 25. Rh1 {[%clk 0:01:07]}  Rcg8 {[%clk 0:01:25]} 26. Rdd1 {[%clk 0:00:35]}  g4 {[%clk 0:01:23]} 27. Bd4 {[%clk 0:00:33]}  Rh5 {[%clk 0:01:23]} 28. Rdf1 {[%clk 0:00:31]}  Ke6 {[%clk 0:01:20]} 29. Kd2 {[%clk 0:00:29]}  g3 {[%clk 0:01:00]} 30. Rh3 {[%clk 0:00:27]}  Rxa5 {[%clk 0:01:00]} 31. Ke3 {[%clk 0:00:26]}  Ra2 {[%clk 0:00:59]} 32. Rg1 {[%clk 0:00:25]}  a5 {[%clk 0:00:53]} 33. Rxh4 {[%clk 0:00:25]}  a4 {[%clk 0:00:53]} 34. Rh6+ {[%clk 0:00:25]}  Kd7 {[%clk 0:00:53]} 35. Rh7 {[%clk 0:00:22]}  Kd6 {[%clk 0:00:32]} 36. Rh6+ {[%clk 0:00:11]}  e6 {[%clk 0:00:32]} 37. Rh5 {[%clk 0:00:10]}  Kc7 {[%clk 0:00:23]} 38. Bc5 {[%clk 0:00:10]}  Rc2 {[%clk 0:00:20]} 39. Rh7+ {[%clk 0:00:09]}  Kb8 {[%clk 0:00:20]} 40. Bb4 {[%clk 0:00:10]}  Ka8 {[%clk 0:00:17]} 41. Kd4 {[%clk 0:00:10]}  Rg5 {[%clk 0:00:15]} 42. f4 {[%clk 0:00:09]}  Rg8 {[%clk 0:00:14]} 43. Kc5 {[%clk 0:00:09]}  Bxe4 {[%clk 0:00:13]} 44. Re7 {[%clk 0:00:08]}  Bxg2 {[%clk 0:00:13]} 45. Kb6 {[%clk 0:00:07]}  Bc6 {[%clk 0:00:10]} 46. Rf7 {[%clk 0:00:07]}  g2 {[%clk 0:00:08]} 47. Rc7 {[%clk 0:00:03]}  Rf2 {[%clk 0:00:07]} 48. Rd1 {[%clk 0:00:03]}  Rf1 {[%clk 0:00:05]} 49. Rd6 {[%clk 0:00:01]}  g1=Q+ {[%clk 0:00:05]} 0-1


[Site "https://www.chess.com"]

[Event "Titled Tuesday Blitz March 28 Early 2023"]
[White "Sasikiran, Krishnan"]
[Black "Bolourchifard, Farzad"]
[WhiteFideId "5004985"]
[BlackFideId "12510084"]
[WhiteElo "2567"]
[BlackElo "2317"]
[Result "0-1"]
[Round "04"]
[TimeControl "180+2"]
[Date "2023.03.28"]
[WhiteClock "0:00:10"]
[BlackClock "0:00:12"]

1. e4 {[%clk 0:03:00]}  e5 {[%clk 0:02:59]} 2. Nf3 {[%clk 0:03:00]}  Nc6 {[%clk 0:03:00]} 3. Bb5 {[%clk 0:03:01]}  a6 {[%clk 0:03:00]} 4. Ba4 {[%clk 0:03:01]}  Nf6 {[%clk 0:03:00]} 5. O-O {[%clk 0:03:01]}  b5 {[%clk 0:03:01]} 6. Bb3 {[%clk 0:03:02]}  Bc5 {[%clk 0:03:01]} 7. a4 {[%clk 0:03:02]}  Rb8 {[%clk 0:03:02]} 8. c3 {[%clk 0:03:02]}  d6 {[%clk 0:03:02]} 9. d4 {[%clk 0:03:02]}  Bb6 {[%clk 0:03:03]} 10. a5 {[%clk 0:03:03]}  Ba7 {[%clk 0:03:03]} 11. h3 {[%clk 0:03:02]}  h6 {[%clk 0:03:01]} 12. Be3 {[%clk 0:02:58]}  O-O {[%clk 0:03:00]} 13. Nbd2 {[%clk 0:02:58]}  Re8 {[%clk 0:02:47]} 14. Re1 {[%clk 0:02:58]}  Ra8 {[%clk 0:02:33]} 15. Bc2 {[%clk 0:02:51]}  Bb7 {[%clk 0:02:33]} 16. Bb1 {[%clk 0:02:38]}  Nb8 {[%clk 0:02:24]} 17. dxe5 {[%clk 0:02:26]}  Bxe3 {[%clk 0:02:12]} 18. Rxe3 {[%clk 0:02:21]}  dxe5 {[%clk 0:02:12]} 19. b4 {[%clk 0:02:19]}  Nbd7 {[%clk 0:02:11]} 20. c4 {[%clk 0:02:15]}  Qe7 {[%clk 0:01:39]} 21. c5 {[%clk 0:01:56]}  Rad8 {[%clk 0:01:36]} 22. Qc2 {[%clk 0:01:49]}  Nf8 {[%clk 0:01:34]} 23. Ba2 {[%clk 0:01:46]}  Ne6 {[%clk 0:01:25]} 24. Rae1 {[%clk 0:01:27]}  Nd4 {[%clk 0:01:21]} 25. Qb2 {[%clk 0:01:27]}  Nc6 {[%clk 0:00:52]} 26. Nf1 {[%clk 0:01:24]}  Bc8 {[%clk 0:00:52]} 27. Ng3 {[%clk 0:01:23]}  Be6 {[%clk 0:00:53]} 28. Nf5 {[%clk 0:01:23]}  Qd7 {[%clk 0:00:47]} 29. Bxe6 {[%clk 0:01:16]}  Qxe6 {[%clk 0:00:48]} 30. N3h4 {[%clk 0:01:05]}  Kh7 {[%clk 0:00:48]} 31. Nf3 {[%clk 0:00:46]}  g6 {[%clk 0:00:49]} 32. Ng3 {[%clk 0:00:45]}  Rd7 {[%clk 0:00:48]} 33. Nf1 {[%clk 0:00:35]}  Red8 {[%clk 0:00:49]} 34. N1h2 {[%clk 0:00:35]}  Kg7 {[%clk 0:00:34]} 35. Nf1 {[%clk 0:00:28]}  Kg8 {[%clk 0:00:33]} 36. N1h2 {[%clk 0:00:27]}  Re8 {[%clk 0:00:23]} 37. Nf1 {[%clk 0:00:26]}  Qc4 {[%clk 0:00:24]} 38. Rb3 {[%clk 0:00:23]}  Nd4 {[%clk 0:00:20]} 39. Nxd4 {[%clk 0:00:23]}  Rxd4 {[%clk 0:00:21]} 40. Ne3 {[%clk 0:00:19]}  Qe6 {[%clk 0:00:19]} 41. f3 {[%clk 0:00:19]}  Red8 {[%clk 0:00:19]} 42. Rc3 {[%clk 0:00:19]}  c6 {[%clk 0:00:20]} 43. Rc2 {[%clk 0:00:17]}  Nh5 {[%clk 0:00:20]} 44. Kh2 {[%clk 0:00:17]}  Qf6 {[%clk 0:00:20]} 45. Kh1 {[%clk 0:00:14]}  Qf4 {[%clk 0:00:20]} 46. Rf2 {[%clk 0:00:11]}  Ng3+ {[%clk 0:00:20]} 47. Kg1 {[%clk 0:00:11]}  h5 {[%clk 0:00:17]} 48. Nf1 {[%clk 0:00:11]}  h4 {[%clk 0:00:15]} 49. Ne3 {[%clk 0:00:10]}  Qxe3 {[%clk 0:00:12]} 0-1


[Site "https://www.chess.com"]

[Event "Titled Tuesday Blitz March 28 Early 2023"]
[White "Zhigalko, Sergei"]
[Black "Perez Gormaz, Matias"]
[WhiteFideId "13502956"]
[BlackFideId "3406342"]
[WhiteElo "2626"]
[BlackElo "2362"]
[Result "1-0"]
[Round "04"]
[TimeControl "180+2"]
[Date "2023.03.28"]
[WhiteClock "0:00:21"]
[BlackClock "0:00:02"]

1. e4 {[%clk 0:03:00]}  c5 {[%clk 0:03:00]} 2. Nf3 {[%clk 0:03:01]}  e6 {[%clk 0:03:00]} 3. c3 {[%clk 0:03:01]}  Nf6 {[%clk 0:02:59]} 4. e5 {[%clk 0:03:01]}  Nd5 {[%clk 0:03:00]} 5. Bc4 {[%clk 0:03:02]}  Be7 {[%clk 0:02:53]} 6. d4 {[%clk 0:03:00]}  cxd4 {[%clk 0:02:52]} 7. cxd4 {[%clk 0:03:01]}  O-O {[%clk 0:02:53]} 8. O-O {[%clk 0:03:02]}  d6 {[%clk 0:02:51]} 9. Bd2 {[%clk 0:03:01]}  b6 {[%clk 0:02:50]} 10. Qe2 {[%clk 0:03:01]}  Bb7 {[%clk 0:02:48]} 11. Nc3 {[%clk 0:03:01]}  Nc7 {[%clk 0:02:21]} 12. Rad1 {[%clk 0:02:30]}  d5 {[%clk 0:02:15]} 13. Bd3 {[%clk 0:02:27]}  Ba6 {[%clk 0:02:16]} 14. h4 {[%clk 0:02:24]}  Bxh4 {[%clk 0:02:09]} 15. g3 {[%clk 0:02:20]}  Be7 {[%clk 0:02:07]} 16. Kg2 {[%clk 0:02:21]}  Bxd3 {[%clk 0:02:03]} 17. Qxd3 {[%clk 0:02:20]}  f5 {[%clk 0:01:51]} 18. exf6 {[%clk 0:02:11]}  Bxf6 {[%clk 0:01:51]} 19. Rh1 {[%clk 0:02:05]}  g6 {[%clk 0:01:50]} 20. Ne2 {[%clk 0:01:28]}  Nc6 {[%clk 0:01:48]} 21. Nf4 {[%clk 0:01:27]}  Rf7 {[%clk 0:01:01]} 22. Rc1 {[%clk 0:01:06]}  Ne7 {[%clk 0:00:43]} 23. Nh3 {[%clk 0:01:06]}  Nf5 {[%clk 0:00:33]} 24. Nhg5 {[%clk 0:01:05]}  Re7 {[%clk 0:00:25]} 25. Bf4 {[%clk 0:00:58]}  Ne8 {[%clk 0:00:18]} 26. g4 {[%clk 0:00:47]}  Nfd6 {[%clk 0:00:18]} 27. Ne5 {[%clk 0:00:44]}  Rg7 {[%clk 0:00:12]} 28. Nxh7 {[%clk 0:00:40]}  Ne4 {[%clk 0:00:05]} 29. Qh3 {[%clk 0:00:24]}  Be7 {[%clk 0:00:02]} 30. Nf6+ {[%clk 0:00:21]} 1-0


[Site "https://www.chess.com"]

[Event "Titled Tuesday Blitz March 28 Early 2023"]
[White "Ozen, Deniz"]
[Black "Araujo Sanchez, Josue"]
[WhiteFideId "6349196"]
[BlackFideId "6416896"]
[WhiteElo "2303"]
[BlackElo "2416"]
[Result "0-1"]
[Round "04"]
[TimeControl "180+2"]
[Date "2023.03.28"]
[WhiteClock "0:00:06"]
[BlackClock "0:00:07"]

1. e4 {[%clk 0:03:00]}  c5 {[%clk 0:02:59]} 2. Nf3 {[%clk 0:03:01]}  d6 {[%clk 0:02:59]} 3. Bb5+ {[%clk 0:03:01]}  Nd7 {[%clk 0:02:58]} 4. O-O {[%clk 0:02:59]}  a6 {[%clk 0:02:54]} 5. Bd3 {[%clk 0:02:59]}  Ngf6 {[%clk 0:02:53]} 6. c3 {[%clk 0:02:59]}  e6 {[%clk 0:02:49]} 7. Bc2 {[%clk 0:03:00]}  Be7 {[%clk 0:02:49]} 8. d4 {[%clk 0:03:00]}  O-O {[%clk 0:02:50]} 9. Re1 {[%clk 0:03:01]}  b5 {[%clk 0:02:47]} 10. Nbd2 {[%clk 0:02:58]}  Bb7 {[%clk 0:02:46]} 11. Nf1 {[%clk 0:02:49]}  Rc8 {[%clk 0:02:46]} 12. Ng3 {[%clk 0:02:49]}  Qc7 {[%clk 0:02:45]} 13. Bd3 {[%clk 0:02:48]}  Rfe8 {[%clk 0:02:42]} 14. h3 {[%clk 0:02:48]}  Bf8 {[%clk 0:02:38]} 15. Be3 {[%clk 0:02:46]}  Nb6 {[%clk 0:02:35]} 16. Qe2 {[%clk 0:02:38]}  Nc4 {[%clk 0:02:29]} 17. Bg5 {[%clk 0:02:30]}  cxd4 {[%clk 0:02:27]} 18. Bxf6 {[%clk 0:02:22]}  gxf6 {[%clk 0:02:26]} 19. Nh5 {[%clk 0:02:20]}  Be7 {[%clk 0:02:22]} 20. b3 {[%clk 0:02:07]}  Kh8 {[%clk 0:01:55]} 21. bxc4 {[%clk 0:01:52]}  bxc4 {[%clk 0:01:55]} 22. Bb1 {[%clk 0:01:52]}  d3 {[%clk 0:01:54]} 23. Qe3 {[%clk 0:01:53]}  Rg8 {[%clk 0:01:53]} 24. a4 {[%clk 0:01:36]}  d5 {[%clk 0:01:53]} 25. e5 {[%clk 0:01:29]}  Bc5 {[%clk 0:01:44]} 26. Qh6 {[%clk 0:01:26]}  Rg6 {[%clk 0:01:44]} 27. Qf4 {[%clk 0:01:20]}  Rcg8 {[%clk 0:01:31]} 28. g4 {[%clk 0:01:09]}  f5 {[%clk 0:01:18]} 29. g5 {[%clk 0:01:09]}  Qb6 {[%clk 0:01:02]} 30. Rf1 {[%clk 0:01:01]}  d4 {[%clk 0:00:52]} 31. Nf6 {[%clk 0:00:46]}  Rxf6 {[%clk 0:00:48]} 32. exf6 {[%clk 0:00:45]}  dxc3 {[%clk 0:00:30]} 33. Ne5 {[%clk 0:00:43]}  Rf8 {[%clk 0:00:14]} 34. g6 {[%clk 0:00:39]}  fxg6 {[%clk 0:00:08]} 35. Nxg6+ {[%clk 0:00:38]}  Kg8 {[%clk 0:00:09]} 36. Nxf8 {[%clk 0:00:33]}  Bxf8 {[%clk 0:00:03]} 37. Qg5+ {[%clk 0:00:22]}  Kf7 {[%clk 0:00:03]} 38. Ba2 {[%clk 0:00:20]}  Qc6 {[%clk 0:00:02]} 39. f3 {[%clk 0:00:20]}  c2 {[%clk 0:00:02]} 40. Rae1 {[%clk 0:00:16]}  Qc5+ {[%clk 0:00:02]} 41. Kh1 {[%clk 0:00:15]}  Qd4 {[%clk 0:00:03]} 42. Qh5+ {[%clk 0:00:13]}  Kxf6 {[%clk 0:00:04]} 43. h4 {[%clk 0:00:09]}  Qf4 {[%clk 0:00:03]} 44. Qg5+ {[%clk 0:00:09]}  Qxg5 {[%clk 0:00:04]} 45. hxg5+ {[%clk 0:00:10]}  Kxg5 {[%clk 0:00:04]} 46. Bxc4 {[%clk 0:00:10]}  d2 {[%clk 0:00:03]} 47. Rg1+ {[%clk 0:00:07]}  Kf4 {[%clk 0:00:03]} 48. Ref1 {[%clk 0:00:05]}  Bxf3+ {[%clk 0:00:03]} 49. Rxf3+ {[%clk 0:00:05]}  Kxf3 {[%clk 0:00:04]} 50. Bxe6 {[%clk 0:00:02]}  c1=Q {[%clk 0:00:05]} 51. Bd5+ {[%clk 0:00:02]}  Ke3 {[%clk 0:00:05]} 52. Kh2 {[%clk 0:00:02]}  Qxg1+ {[%clk 0:00:05]} 53. Kxg1 {[%clk 0:00:03]}  d1=Q+ {[%clk 0:00:05]} 54. Kh2 {[%clk 0:00:04]}  Qxd5 {[%clk 0:00:06]} 55. a5 {[%clk 0:00:05]}  Bd6+ {[%clk 0:00:06]} 56. Kh3 {[%clk 0:00:05]}  Qf3+ {[%clk 0:00:06]} 57. Kh4 {[%clk 0:00:06]}  Qg4# {[%clk 0:00:07]} 0-1


[Site "https://www.chess.com"]

[Event "Titled Tuesday Blitz March 28 Early 2023"]
[White "Vlassov, Nikolai"]
[Black "Nakamura, Hikaru"]
[WhiteFideId "4103360"]
[BlackFideId "2016192"]
[WhiteElo "2324"]
[BlackElo "2879"]
[Result "0-1"]
[Round "04"]
[TimeControl "180+2"]
[Date "2023.03.28"]
[WhiteClock "0:00:17"]
[BlackClock "0:00:10"]

1. e4 {[%clk 0:03:00]}  g6 {[%clk 0:03:00]} 2. Nc3 {[%clk 0:03:00]}  Bg7 {[%clk 0:02:54]} 3. h4 {[%clk 0:03:00]}  c5 {[%clk 0:02:50]} 4. h5 {[%clk 0:02:59]}  Nc6 {[%clk 0:02:49]} 5. Bc4 {[%clk 0:02:57]}  e6 {[%clk 0:02:49]} 6. d3 {[%clk 0:02:57]}  a6 {[%clk 0:02:48]} 7. a4 {[%clk 0:02:51]}  Nge7 {[%clk 0:02:42]} 8. h6 {[%clk 0:02:50]}  Bf6 {[%clk 0:02:42]} 9. g4 {[%clk 0:02:48]}  d5 {[%clk 0:02:38]} 10. Ba2 {[%clk 0:02:40]}  O-O {[%clk 0:02:36]} 11. g5 {[%clk 0:02:39]}  Bh8 {[%clk 0:02:33]} 12. f4 {[%clk 0:02:37]}  Bxc3+ {[%clk 0:01:58]} 13. bxc3 {[%clk 0:02:36]}  b5 {[%clk 0:01:59]} 14. Be3 {[%clk 0:02:29]}  c4 {[%clk 0:01:58]} 15. Ne2 {[%clk 0:02:18]}  Bb7 {[%clk 0:01:52]} 16. O-O {[%clk 0:02:16]}  Qc7 {[%clk 0:01:48]} 17. Ng3 {[%clk 0:01:53]}  Rad8 {[%clk 0:01:44]} 18. Qb1 {[%clk 0:01:49]}  Ra8 {[%clk 0:00:51]} 19. axb5 {[%clk 0:01:36]}  axb5 {[%clk 0:00:52]} 20. Qxb5 {[%clk 0:01:35]}  Rfb8 {[%clk 0:00:51]} 21. Rfb1 {[%clk 0:01:08]}  Bc8 {[%clk 0:00:38]} 22. Qc5 {[%clk 0:00:52]}  Ra5 {[%clk 0:00:36]} 23. Rxb8 {[%clk 0:00:40]}  Rxc5 {[%clk 0:00:36]} 24. Rxc8+ {[%clk 0:00:39]}  Nxc8 {[%clk 0:00:37]} 25. Bxc5 {[%clk 0:00:39]}  Qxf4 {[%clk 0:00:36]} 26. Bf2 {[%clk 0:00:36]}  Ne5 {[%clk 0:00:35]} 27. exd5 {[%clk 0:00:31]}  Ng4 {[%clk 0:00:33]} 28. Ne4 {[%clk 0:00:22]}  Qh2+ {[%clk 0:00:26]} 29. Kf1 {[%clk 0:00:21]}  exd5 {[%clk 0:00:27]} 30. Nf6+ {[%clk 0:00:18]}  Nxf6 {[%clk 0:00:27]} 31. gxf6 {[%clk 0:00:19]}  Qh1+ {[%clk 0:00:25]} 32. Bg1 {[%clk 0:00:19]}  Qf3+ {[%clk 0:00:26]} 33. Bf2 {[%clk 0:00:19]}  Qh3+ {[%clk 0:00:27]} 34. Kg1 {[%clk 0:00:18]}  Qg4+ {[%clk 0:00:17]} 35. Kf1 {[%clk 0:00:18]}  Nd6 {[%clk 0:00:10]} 36. dxc4 {[%clk 0:00:18]}  dxc4 {[%clk 0:00:10]} 37. Rd1 {[%clk 0:00:17]}  Qxd1+ {[%clk 0:00:10]} 0-1


[Site "https://www.chess.com"]

[Event "Titled Tuesday Blitz March 28 Early 2023"]
[White "Naroditsky, Daniel"]
[Black "Malek, Jan"]
[WhiteFideId "2026961"]
[BlackFideId "21864080"]
[WhiteElo "2633"]
[BlackElo "2255"]
[Result "1-0"]
[Round "04"]
[TimeControl "180+2"]
[Date "2023.03.28"]
[WhiteClock "0:00:46"]
[BlackClock "0:00:03"]

1. d4 {[%clk 0:03:00]}  g6 {[%clk 0:02:56]} 2. e4 {[%clk 0:03:00]}  Bg7 {[%clk 0:02:56]} 3. Nc3 {[%clk 0:03:00]}  d5 {[%clk 0:02:55]} 4. exd5 {[%clk 0:02:59]}  Nf6 {[%clk 0:02:55]} 5. Bc4 {[%clk 0:02:59]}  O-O {[%clk 0:02:54]} 6. Nge2 {[%clk 0:02:58]}  Nbd7 {[%clk 0:02:54]} 7. Nf4 {[%clk 0:02:58]}  Nb6 {[%clk 0:02:54]} 8. Bb3 {[%clk 0:02:58]}  Bg4 {[%clk 0:02:47]} 9. f3 {[%clk 0:02:55]}  Bc8 {[%clk 0:02:44]} 10. O-O {[%clk 0:02:53]}  a5 {[%clk 0:02:44]} 11. a4 {[%clk 0:02:53]}  c6 {[%clk 0:02:43]} 12. dxc6 {[%clk 0:02:52]}  bxc6 {[%clk 0:02:44]} 13. Re1 {[%clk 0:02:49]}  Ba6 {[%clk 0:02:35]} 14. Be3 {[%clk 0:02:36]}  Rb8 {[%clk 0:02:27]} 15. Nd3 {[%clk 0:02:26]}  Bc4 {[%clk 0:01:50]} 16. Nc5 {[%clk 0:02:05]}  Bxb3 {[%clk 0:01:46]} 17. cxb3 {[%clk 0:02:06]}  Nbd5 {[%clk 0:01:41]} 18. Bf2 {[%clk 0:02:04]}  Rb4 {[%clk 0:01:38]} 19. N3e4 {[%clk 0:01:50]}  Ne8 {[%clk 0:01:04]} 20. Rc1 {[%clk 0:01:43]}  Nd6 {[%clk 0:00:56]} 21. Nd3 {[%clk 0:01:27]}  Rb6 {[%clk 0:00:39]} 22. Ne5 {[%clk 0:01:24]}  Qc7 {[%clk 0:00:32]} 23. Nc5 {[%clk 0:01:20]}  Rd8 {[%clk 0:00:28]} 24. Qd2 {[%clk 0:01:09]}  Nb7 {[%clk 0:00:17]} 25. Nxb7 {[%clk 0:00:51]}  Qxb7 {[%clk 0:00:18]} 26. Qxa5 {[%clk 0:00:51]}  Ra8 {[%clk 0:00:14]} 27. Qc5 {[%clk 0:00:51]}  Bxe5 {[%clk 0:00:06]} 28. dxe5 {[%clk 0:00:51]}  Rxb3 {[%clk 0:00:05]} 29. e6 {[%clk 0:00:51]}  fxe6 {[%clk 0:00:04]} 30. Rxe6 {[%clk 0:00:48]}  Rxb2 {[%clk 0:00:04]} 31. Rxc6 {[%clk 0:00:48]}  Nf6 {[%clk 0:00:04]} 32. Rc7 {[%clk 0:00:47]}  Qd5 {[%clk 0:00:03]} 33. Qxe7 {[%clk 0:00:46]} 1-0


[Site "https://www.chess.com"]